[Event "ChessKid Cup Div-III 2023"]
[Site "Online"]
[Date "2023.05.23"]
[Round "52.2"]
[White "Bachmann, Axel"]
[Black "Yu, Yangyi"]
[Result "0-1"]
[ECO "C24"]
[WhiteElo "2604"]
[BlackElo "2729"]
[Annotator "TA"]
[PlyCount "110"]
[EventDate "2023.05.21"]
[EventType "k.o."]
[EventCountry "NET"]
[SourceTitle "playchess.com"]
[Source "ChessBase"]
[SourceQuality "1"]
[TimeControl "900+3"]

{[%evp 9,110,29,12,4,37,0,27,21,57,36,20,39,45,9,45,49,52,43,35,46,45,31,38,49,40,46,97,92,82,85,108,96,97,95,93,72,92,44,73,26,32,31,33,-75,0,-103,46,-56,96,100,90,85,89,67,56,62,139,135,118,90,107,76,89,87,93,90,96,65,66,18,22,10,109,0,0,0,0,-8,0,0,14,0,0,0,0,0,0,-452,-421,-536,-527,-527,-527,-527,-496,-6760,-6510,-1132,-901,-29996,-29997,-29997,-29998]} 1. e4 {[%emt 0:00:05]} e5 {[%emt 0:00:05]} 2. Bc4 {[%emt 0:00:01]} Nf6 {[%emt 0:00:02]} 3. d3 {[%emt 0:00:00]} c6 {[%emt 0:00:00]} 4. Nf3 {[%emt 0:00:02]} d5 {[%emt 0:00:01]} 5. Bb3 {[%emt 0:00:01]} Bb4+ {[%emt 0:00:03]} 6. Bd2 {[%emt 0:00:01] C24: Bishop's Opening: 2...Nf6.} Bd6 {[%emt 0:00:50]} 7. Nc3 {[%emt 0:00:02][%cal Re4d5]} Be6 $5 {[%emt 0:00:25][%mdl 4] A promising side line.} (7... d4 $5 {[%cal Rd4c3]} 8. Ne2 O-O $11) 8. Bg5 {[%emt 0:01:40] White has an edge.} Qa5 {[%emt 0:00:28]} 9. Bxf6 {[%emt 0:00:20]} gxf6 {[%emt 0:00:01]} 10. O-O $1 {[%emt 0:00:02]} Nd7 {[%emt 0:00:07] [#]} 11. d4 $146 {[%emt 0:02:21]} ({Predecessor:} 11. Nh4 h5 12. exd5 cxd5 13. Qf3 d4 14. Ne4 Be7 15. Nf5 Bxb3 16. Ned6+ Bxd6 17. Nxd6+ Ke7 18. axb3 {1-0 Goutali,T (2225)-Carvalho,G (2249) Olympiad-38 Dresden 2008 (10)}) 11... Bb4 {[%emt 0:00:13]} 12. exd5 {[%emt 0:00:45]} cxd5 {[%emt 0:00:02]} 13. dxe5 $1 {[%emt 0:00:22][%cal Rc3d5]} Bxc3 {[%emt 0:00:01]} 14. bxc3 {[%emt 0:00:01][%cal Bb2c3,Bc3c4,Bc4c5,Bc5c6,Bc6b7][%mdl 32]} fxe5 {[%emt 0:00:00]} 15. Ng5 {[%emt 0:00:25]} O-O-O {[%emt 0:00:06] [#]} 16. c4 $1 {[%emt 0:00:05]} d4 {[%emt 0:00:43]} (16... dxc4 17. Nxe6) 17. c5 {[%emt 0:00:36]} h6 {[%emt 0:01:26]} (17... Qxc5 $2 18. Bxe6 (18. Nxf7 Bxf7 19. Bxf7 Kb8 $15) (18. Nxe6 fxe6 19. Bxe6 Kb8 $11) 18... fxe6 19. Nxe6 $18) (17... Rhg8 $1 $14 18. Nxe6 (18. Nxf7 Bxf7 19. Bxf7 Rg7 $11) 18... fxe6) 18. Nxe6 $16 {[%emt 0:00:18]} fxe6 {[%emt 0:00:01]} 19. c6 {[%emt 0:00:01]} (19. Bxe6 Qxc5 20. Qh5 Qd6 21. Bxd7+ Rxd7 $14) 19... Nc5 {[%emt 0:00:14]} 20. cxb7+ $1 {[%emt 0:00:07]} Kb8 {[%emt 0:00:01]} 21. Qh5 {[%emt 0:00:19]} Qc7 {[%emt 0:00:10]} 22. f3 {[%emt 0:00:46]} Rdg8 {[%emt 0:00:18]} 23. Rae1 {[%emt 0:03:10]} (23. Bc4 $16) 23... Rg5 $14 {[%emt 0:00:03]} 24. Qh4 {[%emt 0:00:00]} ({Better is} 24. Qh3 $16) 24... Rhg8 $11 {[%emt 0:00:51]} 25. Re2 {[%emt 0:00:04]} (25. Qxh6 $2 Rxg2+ 26. Kh1 d3 $19) 25... Qg7 {[%emt 0:00:16][%cal Rg5g2]} 26. Rff2 {[%emt 0:01:34]} (26. g3 $14 {stays ahead.}) 26... Qf6 {[%emt 0:00:05] Some like it hot} (26... Qxb7 27. f4 R5g7 28. Qf6 $16) (26... Kxb7 27. Qh3 $14) (26... e4 $1 $17 {[%cal Re4e3] And now ...e3 would win.} 27. fxe4 d3 28. cxd3 Nxd3) 27. Kh1 {[%emt 0:00:31] [#]} (27. Kf1 $11) 27... Qg6 {[%emt 0:02:32]} (27... Kxb7 28. Rf1 $14) (27... e4 $1 $17 {[%cal Re4f3] Hoping for ...exf3.} 28. Re1 (28. fxe4 Rxg2 {[%mdl 64] Discovered Attack} 29. h3 Rg1+ 30. Kh2 Qxh4) 28... e3) 28. f4 {[%emt 0:00:23]} (28. g3 $1 $14) 28... Qh5 $2 {[%emt 0:01:59]} (28... Rh5 $1 $15 {keeps the upper hand.} 29. f5 Rxf5) 29. Qxh5 $16 {[%emt 0:00:11]} Rxh5 {[%emt 0:00:00]} 30. fxe5 {[%emt 0:00:09]} Rgg5 {[%emt 0:00:14]} 31. Rd2 {[%emt 0:00:43]} (31. Bc4 {simplifies} Kxb7 32. Kg1 Rxe5 33. Rf4) 31... Rxe5 {[%emt 0:00:12]} 32. g4 {[%emt 0:00:01]} (32. Rxd4 $2 {gets mated.} Re1+) 32... Rhg5 {[%emt 0:01:22]} ({Black should play} 32... Rh4 $14) 33. Rxd4 {[%emt 0:00:01]} Kxb7 {[%emt 0:00:00]} 34. h3 {[%emt 0:00:21]} h5 {[%emt 0:00:03]} 35. Kh2 {[%emt 0:00:13]} hxg4 {[%emt 0:00:18]} 36. Rxg4 {[%emt 0:00:08]} Rh5 {[%emt 0:00:04]} 37. Bc4 {[%emt 0:00:11]} Re3 {[%emt 0:00:40]} 38. Bf1 {[%emt 0:00:01]} Ra3 {[%emt 0:00:03]} 39. Rb4+ {[%emt 0:00:13]} (39. Bg2+ $14 Ka6 40. c4) 39... Kc7 $11 {[%emt 0:00:12]} 40. c4 {[%emt 0:00:14]} Nd3 {[%emt 0:00:30] [#]} (40... e5 $11) 41. Rf7+ {[%emt 0:00:15]} (41. Rb3 $1 $16 Rxb3 42. Rf7+ Kb6 43. axb3) 41... Kd6 {[%emt 0:00:03]} 42. Rbb7 {[%emt 0:00:16]} Rxa2+ {[%emt 0:00:07]} 43. Kg3 {[%emt 0:00:00]} Nc5 {[%emt 0:00:11] Repels Rfd7+} (43... Ne5 {is interesting.} 44. Rg7 Rf5 45. Bg2 a5) 44. Rxa7 {[%emt 0:00:02]} Rb2 {[%emt 0:00:23]} 45. Kg4 {[%emt 0:00:03]} Rh8 {[%emt 0:00:08]} 46. Ra3 {[%emt 0:00:06]} Rg8+ {[%emt 0:00:09]} 47. Kh5 {[%emt 0:00:05]} Rg1 {[%emt 0:00:19]} 48. h4 $2 {[%emt 0:00:05][%mdl 8192]} (48. Kh6 $11) 48... Rb8 $19 {[%emt 0:00:05]} 49. Kh6 {[%emt 0:00:00]} ({Of course not} 49. Bd3 Rg3 50. Kh6 Rh8+ 51. Rh7 Rxh7+ 52. Kxh7 e5) 49... Rh8+ {[%emt 0:00:05][%mdl 64] Skewer} 50. Rh7 {[%emt 0:00:02]} Rxh7+ {[%emt 0:00:01]} 51. Kxh7 {[%emt 0:00:00]} Rxf1 {[%emt 0:00:01]} 52. Rh3 {[%emt 0:00:02]} (52. Kg6 $142 Rg1+ 53. Kf6) 52... Rg1 {[%emt 0:00:06]} 53. h5 {[%emt 0:00:01]} Ne4 {[%emt 0:00:02] ( -> ...Ng5+)} 54. Kh8 {[%emt 0:00:07]} Nf6 {[%emt 0:00:02][%csl Gf6][%cal Rg1g8]} 55. c5+ {[%emt 0:00:04]} Kc6 {[%emt 0:00:05] Weighted Error Value: White=0.54/Black=0.23 (precise)} 0-1

[Event "ChessKid Cup Div-III 2023"]
[Site "Online"]
[Date "2023.05.23"]
[Round "52.2"]
[White "Vaibhav, Suri"]
[Black "Bok, Benjamin"]
[Result "0-1"]
[ECO "C50"]
[WhiteElo "2595"]
[BlackElo "2607"]
[Annotator "TA"]
[PlyCount "88"]
[EventDate "2023.05.21"]
[EventType "k.o."]
[EventCountry "NET"]
[SourceTitle "playchess.com"]
[Source "ChessBase"]
[SourceQuality "1"]
[TimeControl "900+3"]

{[%evp 13,88,5,10,0,15,13,8,0,4,7,23,14,18,0,5,11,21,-56,-56,-69,-58,-75,-82,-65,-75,-103,-49,-90,-21,-38,-47,-66,0,0,-7,0,0,0,0,0,0,0,0,0,-8,0,-21,-26,-12,-94,184,196,187,180,203,0,163,186,178,166,270,271,302,302,320,319,318,310,345,332,355,0,0,0,0,-29975,-29976]} 1. e4 {[%emt 0:00:03]} e5 {[%emt 0:00:05]} 2. Nf3 {[%emt 0:00:01]} Nc6 {[%emt 0:00:01]} 3. Bc4 {[%emt 0:00:01]} Bc5 {[%emt 0:00:01]} 4. Nc3 {[%emt 0:00:00]} Nf6 {[%emt 0:00:04]} 5. d3 {[%emt 0:00:00]} d6 {[%emt 0:00:13]} 6. Na4 {[%emt 0:00:03]} Bb6 {[%emt 0:00:07]} 7. Nxb6 {[%emt 0:00:03]} axb6 {[%emt 0:00:00]} 8. a4 {[%emt 0:00:01] C50: Hungarian Defence and Giuoco Pianissimo.} O-O {[%emt 0:00:11]} 9. O-O {[%emt 0:00:01]} h6 {[%emt 0:00:37]} 10. h3 {[%emt 0:00:03] The position is equal.} Re8 {[%emt 0:00:25]} 11. Re1 {[%emt 0:00:16]} Be6 {[%emt 0:00:07]} 12. Bb5 {[%emt 0:00:13]} Bd7 {[%emt 0:00:06] [#]} 13. Be3 $146 {[%emt 0:01:06]} ({Predecessor:} 13. Bd2 Ne7 14. Nh4 Bxb5 15. axb5 Qd7 16. c4 c6 17. bxc6 bxc6 18. Qf3 Kh7 19. b4 d5 20. Rxa8 Rxa8 21. exd5 cxd5 22. Rxe5 {1-0 Salati,P (2235)-Packroff,H (2200) EU-ch 2015 pr08 email}) 13... Ne7 {[%emt 0:00:09]} 14. c3 {[%emt 0:00:19]} Ng6 {[%emt 0:00:10]} 15. Nd2 {[%emt 0:00:55]} (15. Bxd7 $11 Nxd7 16. Qc2) 15... d5 $15 {[%emt 0:00:11] Strongly threatening ...Bxb5.} 16. Bxd7 {[%emt 0:00:40]} Qxd7 {[%emt 0:00:01]} 17. f3 {[%emt 0:00:01]} Nh5 {[%emt 0:02:00]} 18. d4 {[%emt 0:01:15]} Nhf4 {[%emt 0:00:42]} 19. Qc2 {[%emt 0:00:50] Prevents Nd3} Re6 {[%emt 0:03:06] Black is more active.} (19... c5 $17 {White must now prevent ...exd4.} 20. Bxf4 (20. dxc5 d4 $15) 20... Nxf4) 20. Nf1 {[%emt 0:02:17]} Rae8 {[%emt 0:01:51]} (20... Nh4 $17 21. Bxf4 exf4) 21. Qd2 {[%emt 0:01:37] [#]} Nxh3+ $1 {[%emt 0:04:28]} 22. gxh3 {[%emt 0:00:04]} Nh4 {[%emt 0:00:00]} (22... Rf6 $1 $15 23. Bf2 exd4 24. exd5 (24. cxd4 Rxf3 25. exd5 Rxe1 $15) (24. Qxd4 $2 Qxh3 25. Bg3 Rxf3 $17) (24. Bxd4 $2 Nh4 $19) 24... Re5) 23. Qf2 $11 {[%emt 0:00:59]} (23. Nh2 $2 Rg6+ 24. Kh1 Qxh3 $19) 23... Rg6+ {[%emt 0:00:02][%mdl 64] Discovered Attack} 24. Kh2 {[%emt 0:00:01]} Rg2+ {[%emt 0:00:02]} 25. Qxg2 $1 {[%emt 0:00:00]} Nxg2 {[%emt 0:00:00]} 26. Kxg2 {[%emt 0:00:01]} exd4 {[%emt 0:00:10]} 27. Bxd4 {[%emt 0:00:03]} dxe4 {[%emt 0:00:16]} 28. fxe4 {[%emt 0:00:13]} c5 {[%emt 0:00:33]} 29. Bf2 {[%emt 0:00:03]} Qc6 {[%emt 0:00:05]} 30. Ng3 {[%emt 0:00:19]} f5 {[%emt 0:00:05]} 31. Be3 {[%emt 0:01:55]} (31. Nxf5 $11 Rxe4 32. Kh2) 31... Rxe4 $2 {[%emt 0:00:14][%mdl 8192]} (31... Rf8 $1 $17 {stays on course. Threatens to win with ...f4.} 32. Rf1 g5) 32. Nxe4 $18 {[%emt 0:00:37]} Qxe4+ {[%emt 0:00:00] [#]} 33. Kg3 $1 {[%emt 0:00:16]} Qc2 {[%emt 0:00:29]} 34. a5 $2 {[%emt 0:00:58]} (34. Rad1 $18) 34... g5 $2 {[%emt 0:00:05]} (34... Qxb2 $11 {and Black has nothing to worry.} 35. axb6 Qxc3) 35. Bf2 {[%emt 0:00:01]} (35. axb6 f4+ 36. Bxf4 gxf4+ 37. Kxf4 Qxb2 $11) 35... Qxb2 {[%emt 0:00:05]} 36. axb6 {[%emt 0:00:05]} Qxb6 {[%emt 0:00:03]} (36... Kf7 $142 37. Rad1 (37. Bxc5 $2 Qxc3+ 38. Be3 f4+ {[%mdl 64] Pin, Double Attack} 39. Kf3 fxe3 $19) 37... Qxc3+ 38. Kg2 Qf6 39. Rd7+ (39. Bxc5 $2 Qc6+ 40. Kf1 Qxc5 $19) 39... Kg6) 37. Rad1 {[%emt 0:00:13] aiming for Rd7.} Qc7+ {[%emt 0:00:05]} 38. Kg2 {[%emt 0:00:02]} Qc6+ {[%emt 0:00:02]} 39. Kg1 {[%emt 0:00:02]} Kf7 {[%emt 0:00:04] Repels Re7+} 40. Re5 {[%emt 0:00:07][%csl LRc5,LRf5]} f4 {[%emt 0:00:04][%cal Bf5f4,Bf4f3][%mdl 32]} 41. Rxc5 {[%emt 0:00:05]} (41. Bxc5 Qf3 42. Rd7+ Kg6 43. Rd6+ Kh5 $11) 41... Qf3 {[%emt 0:00:02] [#]} 42. Rd6 {[%emt 0:00:15]} (42. Rd7+ $1 $18 Ke6 43. Rh7 Qxh3 44. Rxg5 {[%mdl 64] Pin} (44. Rxb7 $2 f3 $19)) 42... Qxh3 $11 {[%emt 0:00:04]} 43. Rc7+ {[%emt 0:00:01]} Ke8 {[%emt 0:00:02] ( -> ...f3). The board is on fire.} 44. Rh7 $2 {[%emt 0:00:26][%mdl 8192]} (44. Rxb7 $2 {perishes.} f3 $19) (44. Bc5 $11 Qxc3 45. Rxh6 (45. Rc8+ Kf7 $11) 45... Qg3+ 46. Kh1 (46. Kf1 Qd3+ 47. Kg2 Qg3+ 48. Kh1 Qe1+ 49. Bg1 Qe4+ 50. Kh2 Qe2+ 51. Kh1 Qf3+ 52. Kh2 Qg3+ 53. Kh1 Qf3+ 54. Kh2 Qg3+ 55. Kh1 Qf3+ $11) 46... Qe1+ 47. Bg1 Qe4+ 48. Kh2 Qe2+ 49. Kh3 g4+ 50. Kh4 Qe1+ 51. Kh5 (51. Kxg4 Qxg1+ 52. Kf5 Qb1+ 53. Kg5 Qb5+ 54. Kh4 Qb2 $11) 51... Qe5+ 52. Kxg4 Qxc7 53. Rh8+ Ke7 54. Rh7+ Kd8 55. Rxc7 Kxc7 56. Kxf4) 44... f3 {[%emt 0:00:02] Weighted Error Value: White=0.51/Black=0.34} 0-1

[Event "ChessKid Cup Div-III 2023"]
[Site "Online"]
[Date "2023.05.23"]
[Round "52.2"]
[White "Santos Ruiz, Miguel"]
[Black "Gledura, Benjamin"]
[Result "1/2-1/2"]
[ECO "B07"]
[WhiteElo "2590"]
[BlackElo "2644"]
[Annotator "TA"]
[PlyCount "181"]
[EventDate "2023.05.21"]
[EventType "k.o."]
[EventCountry "NET"]
[SourceTitle "playchess.com"]
[Source "ChessBase"]
[SourceQuality "1"]
[TimeControl "900+3"]

{[%evp 9,180,40,52,19,40,-3,-12,-14,27,20,12,6,86,97,103,91,114,113,110,56,50,49,59,58,50,44,54,49,117,120,118,116,108,95,144,75,89,77,84,54,46,48,51,43,43,27,33,15,26,24,29,5,6,6,6,6,5,0,0,0,48,48,48,48,48,48,69,48,48,48,48,29,29,29,44,44,69,69,69,69,69,69,69,69,69,69,89,89,89,89,89,89,89,89,89,89,89,89,89,89,89,0,89,89,89,89,89,89,89,89,89,89,89,89,89,89,89,89,89,89,89,89,89,89,89,89,89,89,89,89,89,0,89,89,89,89,89,89,89,89,89,8,120,120,120,120,120,86,120,120,4629,120,4570,120,120,120,120,120,120,120,120,120,120,120,120,0,86,99,99,0,0,0,0]} 1. e4 {[%emt 0:00:03]} d6 {[%emt 0:00:05]} 2. d4 {[%emt 0:00:02]} g6 {[%emt 0:00:02]} 3. Be3 {[%emt 0:00:03]} Bg7 {[%emt 0:00:02]} 4. f3 {[%emt 0:00:04]} Nf6 {[%emt 0:01:09]} 5. Qd2 {[%emt 0:00:03]} O-O {[%emt 0:00:09][%cal Oc7c5] [#]} 6. Na3 $146 {[%emt 0:00:04] B07: Pirc Defence: Miscellaneous Systems.} ({Predecessor:} 6. Ne2 c5 7. c3 Nc6 8. Na3 cxd4 9. cxd4 Re8 10. Nc2 e5 11. d5 Nd4 12. Ncxd4 exd4 13. Bxd4 Nxe4 14. fxe4 {1-0 Yeletsky,I (2494)-Bortnyk,O (2605) Titled Tuesday intern op 28th Feb Early blitz 2023 (9)}) 6... c5 {[%emt 0:00:55]} 7. Ne2 {[%emt 0:02:01]} cxd4 {[%emt 0:00:47]} 8. Nxd4 {[%emt 0:00:00]} Nc6 {[%emt 0:01:01]} 9. O-O-O {[%emt 0:00:03]} d5 {[%emt 0:00:18]} 10. exd5 {[%emt 0:00:40]} Nxd4 {[%emt 0:01:57]} (10... Nxd5 $11 11. Bf2 Nb6) 11. Bxd4 $16 {[%emt 0:00:14]} ({Much worse is} 11. Qxd4 $6 Ng4 12. Qd2 Nxe3 13. Qxe3 a6 $11) 11... Qxd5 {[%emt 0:00:03]} 12. Bc4 {[%emt 0:00:20]} Qc6 {[%emt 0:00:04]} 13. Rhe1 {[%emt 0:00:13]} e6 {[%emt 0:00:30]} 14. Qf4 {[%emt 0:03:39]} (14. Qg5 $16 h6 15. Qh4) 14... Nh5 $14 {[%emt 0:01:04]} 15. Qe3 {[%emt 0:00:04]} a6 {[%emt 0:00:12]} 16. g4 {[%emt 0:00:14]} Nf6 {[%emt 0:00:02]} 17. Qf4 {[%emt 0:00:30]} Ne8 {[%emt 0:00:18]} 18. Bd3 {[%emt 0:01:04]} Qc7 {[%emt 0:00:32] Prevents Nc4} (18... Bxd4 $14 19. Qxd4 Qxf3) 19. Qxc7 $16 {[%emt 0:00:16]} Nxc7 {[%emt 0:00:00]} 20. Bc5 {[%emt 0:00:12]} Re8 {[%emt 0:01:09]} 21. Nc4 {[%emt 0:00:08]} Bf8 {[%emt 0:00:09] Black is weak on the dark squares} (21... b5 $142) 22. Bxf8 {[%emt 0:01:31]} ({Better is} 22. Bf2 $1) 22... Kxf8 {[%emt 0:00:03]} 23. Nb6 {[%emt 0:00:03]} Rb8 {[%emt 0:00:01]} 24. g5 {[%emt 0:00:48] White is much more active. The black rooks are badly placed.} Nd5 {[%emt 0:00:26]} 25. Nxd5 {[%emt 0:00:50]} exd5 {[%emt 0:00:01]} 26. Kd2 {[%emt 0:00:05]} Be6 {[%emt 0:00:20]} 27. f4 {[%emt 0:00:36][%cal Bf3f4,Bf4f5,Bf5e6,Be6e7][%mdl 32]} Ke7 {[%emt 0:00:47]} 28. Re5 {[%emt 0:00:27]} Kd6 {[%emt 0:00:03]} 29. Rde1 {[%emt 0:00:02]} h6 {[%emt 0:00:52]} 30. gxh6 {[%emt 0:00:12] And now h7 would win.} (30. h4 $5) 30... Rh8 {[%emt 0:00:02] [#]} 31. Bxg6 $1 {[%emt 0:00:19][%cal Oh6h7][%mdl 64] h7! would be deadly. Deflection} Rxh6 {[%emt 0:00:02]} 32. f5 {[%emt 0:00:15]} ({Don't play} 32. Bh5 Rbh8 33. Bd1 Rxh2+ 34. R5e2 Bg4 35. Rxh2 Rxh2+ 36. Kd3 Rh3+ 37. Kd2 Bxd1 38. Rxd1 Rf3 $15) 32... Rxh2+ {[%emt 0:00:02]} 33. Kc1 {[%emt 0:00:01]} Rc8 {[%emt 0:00:42]} 34. c3 {[%emt 0:00:24]} Rf2 {[%emt 0:01:27]} (34... Rf8 $11 {was preferrable.} 35. fxe6 fxg6) 35. fxe6 $14 {[%emt 0:00:08]} fxg6 {[%emt 0:00:01][%mdl 4096] Endgame KRR-KRR} 36. e7 {[%emt 0:00:03]} Re8 {[%emt 0:00:01][%cal Of2f1]} 37. Re6+ $1 {[%emt 0:00:15]} Kd7 {[%emt 0:00:01][%cal Of2f1]} 38. Rb6 {[%emt 0:00:02]} Kc7 {[%emt 0:00:04]} (38... Rxe7 $2 39. Rxb7+ Kd6 40. Rbxe7 $18) 39. Rxg6 {[%emt 0:00:03]} Rf7 {[%emt 0:00:00]} 40. Re5 {[%emt 0:00:42]} Rexe7 {[%emt 0:00:06]} 41. Rxd5 {[%emt 0:00:03]} Rf2 {[%emt 0:00:05] Repels Rg2} 42. Rd2 {[%emt 0:00:02]} Ree2 {[%emt 0:00:25]} 43. Rgd6 {[%emt 0:00:06]} Rxd2 {[%emt 0:00:01]} 44. Rxd2 {[%emt 0:00:01] KR-KR} Rf5 {[%emt 0:00:01]} 45. Kc2 {[%emt 0:00:01]} Rf6 {[%emt 0:00:02]} 46. Re2 {[%emt 0:00:02]} Kc6 {[%emt 0:00:01]} 47. Re5 {[%emt 0:00:01]} Rh6 {[%emt 0:00:01]} 48. a4 {[%emt 0:00:01]} Rf6 {[%emt 0:00:04]} 49. a5 {[%emt 0:00:01]} Rh6 {[%emt 0:00:02]} 50. b4 {[%emt 0:00:01]} Rh4 {[%emt 0:00:05]} 51. Kb3 {[%emt 0:00:01]} Rg4 {[%emt 0:00:02]} 52. Rc5+ {[%emt 0:00:01]} Kd6 {[%emt 0:00:01]} 53. Rc4 {[%emt 0:00:01]} Rg5 {[%emt 0:00:01]} 54. Rc8 {[%emt 0:00:04]} Rg4 {[%emt 0:00:03]} 55. Rc4 {[%emt 0:00:02]} Rg5 {[%emt 0:00:01]} 56. Rf4 {[%emt 0:00:02]} Rg6 {[%emt 0:00:03]} 57. Ka4 {[%emt 0:00:02]} Rg1 {[%emt 0:00:05]} 58. Rf7 {[%emt 0:00:02]} Kc6 {[%emt 0:00:01]} 59. Rf6+ {[%emt 0:00:02]} Kc7 {[%emt 0:00:01]} 60. Kb3 {[%emt 0:00:01]} Rg4 {[%emt 0:00:01]} 61. Rf3 {[%emt 0:00:02]} Rh4 {[%emt 0:00:02]} 62. c4 {[%emt 0:00:02]} Rg4 {[%emt 0:00:07]} 63. Kc3 {[%emt 0:00:01]} Rh4 {[%emt 0:00:01]} 64. Kd3 {[%emt 0:00:01]} Rg4 {[%emt 0:00:01]} 65. Rf7+ {[%emt 0:00:01]} Kc6 {[%emt 0:00:01]} 66. Re7 {[%emt 0:00:02]} Rg1 {[%emt 0:00:06]} 67. Re6+ {[%emt 0:00:05]} Kd7 {[%emt 0:00:02]} 68. Rh6 {[%emt 0:00:06]} Rg4 {[%emt 0:00:04]} 69. Rh7+ {[%emt 0:00:04]} Kc6 {[%emt 0:00:01]} 70. Rh6+ {[%emt 0:00:01]} (70. Rh1 $16) 70... Kc7 {[%emt 0:00:01]} (70... Kd7 $11) 71. Re6 $16 {[%emt 0:00:02]} Rh4 {[%emt 0:00:12]} 72. Re4 {[%emt 0:00:01]} Rh6 {[%emt 0:00:03]} 73. Rg4 {[%emt 0:00:03]} Rd6+ {[%emt 0:00:02]} 74. Kc3 {[%emt 0:00:03]} Rh6 {[%emt 0:00:02]} 75. b5 {[%emt 0:00:06]} (75. Rg7+ $16 Kc6 76. Rg4) 75... axb5 {[%emt 0:00:02]} (75... b6 $1 $11 {keeps the balance.}) 76. cxb5 {[%emt 0:00:01]} Rh1 {[%emt 0:00:12]} 77. Rg7+ {[%emt 0:00:02]} Kc8 {[%emt 0:00:07]} 78. Kb4 {[%emt 0:00:15]} Rh5 {[%emt 0:00:15]} 79. Kc4 {[%emt 0:00:03] aiming for Rg8+.} Rf5 $2 {[%emt 0:00:08][%mdl 8192]} (79... Rh6 $16 80. b6 Rh4+ 81. Kd5 Rh5+ 82. Kd6 Rh8) 80. Rh7 $2 {[%emt 0:00:07]} (80. Rg8+ $1 $18 {and the rest is easy.} Kc7 81. b6+ Kc6 82. Rc8+ Kd7 83. Rc7+ Kd6 84. Rxb7 Rxa5 85. Rc7) 80... Rg5 $2 {[%emt 0:00:02][%mdl 8192] [#]} (80... Rf8 $16 81. Kc5 (81. a6 bxa6 82. bxa6 Kb8 $11) 81... Kb8) 81. Kb4 $2 {[%emt 0:00:01]} (81. Rh8+ $1 $18 {is the precise move to win.} Kc7 82. b6+ Kc6 83. Rc8+ Kd7 84. Rc7+ Kd6 85. Rxb7 Rxa5 86. Rc7) 81... Rf5 {[%emt 0:00:14]} 82. b6 {[%emt 0:00:01]} Rf8 {[%emt 0:00:31]} 83. Kc5 {[%emt 0:00:04]} Rd8 {[%emt 0:00:10]} 84. Rg7 {[%emt 0:00:20]} Kb8 {[%emt 0:00:04]} 85. Rg6 {[%emt 0:00:02]} Rc8+ {[%emt 0:00:04]} 86. Kd5 {[%emt 0:00:01]} Rd8+ {[%emt 0:00:00]} 87. Rd6 {[%emt 0:00:01]} (87. Kc4 $16) 87... Rxd6+ {[%emt 0:00:04]} (87... Kc8 $11 {remains equal.}) 88. Kxd6 {[%emt 0:00:01]} Ka8 {[%emt 0:00:02] [#]} 89. a6 {[%emt 0:00:02]} Kb8 $11 {[%emt 0:00:01]} 90. a7+ {[%emt 0:00:05]} Ka8 {[%emt 0:00:00]} 91. Ke5 {[%emt 0:00:00] Weighted Error Value: White=0.08 (flawless) /Black=0.09 (flawless)} 1/2-1/2